fUST/lending_fUST_20250302
["ID","MTS","AMOUNT","RATE_DAILY","PERIOD"]
[354966546,1740849045771,-500.0,0.00027296,2]
[354966548,1740849045781,-500.0,0.00027296,2]
[354966550,1740849045791,-500.0,0.00027296,2]
[354966552,1740849045800,-1253.1,0.00027296,2]
[354966554,1740849045810,-500.0,0.00027296,2]
[354966556,1740849045820,-551.13,0.00027296,2]
[354966558,1740849045830,-500.0,0.00027296,2]
[354966560,1740849045840,-924.66,0.00027296,2]
[354966562,1740849045850,-1012.73,0.00027296,2]
[354966564,1740849045860,-330.41358846,0.00027296,2]
[354966566,1740849045870,-945.06,0.00027296,2]
[354966568,1740849045880,-500.0,0.00027296,2]
[354966570,1740849045890,-500.0,0.00027296,2]
[354966572,1740849045901,-500.0,0.00027296,2]
[354966574,1740849045911,-500.0,0.00027296,2]
[354966576,1740849045921,-500.0,0.00027296,2]
[354966578,1740849045931,-500.0,0.00027296,2]
[354966580,1740849045941,-500.0,0.00027296,2]
[354966582,1740849045952,-500.0,0.00027296,2]
[354966584,1740849045962,-681.91,0.00027296,2]
[354966586,1740849045972,-500.0,0.00027296,2]
[354966588,1740849045982,-500.0,0.00027296,2]
[354966590,1740849045991,-500.0,0.00027296,2]
[354966592,1740849046001,-500.0,0.00027296,2]
[354966594,1740849046011,-647.65,0.00027296,2]
[354966596,1740849046021,-515.16,0.00027296,2]
[354966598,1740849046033,-500.0,0.00027296,2]
[354966601,1740849046043,-500.0,0.00027296,2]
[354966603,1740849046054,-500.0,0.00027296,2]
[354966605,1740849046063,-500.0,0.00027296,2]
[354966607,1740849046075,-500.0,0.00027296,2]
[354966609,1740849046085,-500.0,0.00027296,2]
[354966611,1740849046095,-556.78,0.00027296,2]
[354966613,1740849046112,-500.0,0.00027296,2]
[354966616,1740849046122,-500.0,0.00027296,2]
[354966619,1740849046133,-500.0,0.00027296,2]
[354966622,1740849046143,-1022.49,0.00027296,2]
[354966626,1740849046155,-500.0,0.00027296,2]
[354966630,1740849046166,-500.0,0.00027296,2]
[354966633,1740849046177,-500.0,0.00027296,2]
[354966636,1740849046187,-500.0,0.00027296,2]
[354966639,1740849046196,-500.0,0.00027296,2]
[354966642,1740849046207,-500.0,0.00027296,2]
[354966645,1740849046216,-1672.43,0.00027296,2]
[354966648,1740849046227,-500.0,0.00027296,2]
[354966651,1740849046239,-1502.99,0.00027296,2]
[354966654,1740849046250,-956.08,0.00027296,2]
[354966657,1740849046261,-500.0,0.00027296,2]
[354966661,1740849046271,-701.13,0.00027296,2]
[354966664,1740849046282,-500.0,0.00027296,2]
[354966667,1740849046292,-500.0,0.00027296,2]
[354966670,1740849046302,-576.37,0.00027296,2]
[354966673,1740849046312,-500.0,0.00027296,2]
[354966677,1740849046322,-500.0,0.00027296,2]
[354966680,1740849046332,-1095.95,0.00027296,2]
[354966683,1740849046343,-586.4,0.00027296,2]
[354966686,1740849046353,-500.0,0.00027296,2]
[354966689,1740849046363,-3059.32,0.00027296,2]
[354966692,1740849046373,-530.03,0.00027296,2]
[354966695,1740849046383,-500.0,0.00027296,2]
[354966698,1740849046395,-500.0,0.00027296,2]
[354966701,1740849046405,-500.0,0.00027296,2]
[354966704,1740849046415,-771.7,0.00027296,2]
[354966707,1740849046427,-500.0,0.00027296,2]
[354966711,1740849046437,-1204.65,0.00027296,2]
[354966714,1740849046447,-500.0,0.00027296,2]
[354966717,1740849046457,-513.36,0.00027296,2]
[354966720,1740849046467,-500.0,0.00027296,2]
[354966723,1740849046477,-500.0,0.00027296,2]
[354966726,1740849046488,-510.68,0.00027296,2]
[354966729,1740849046498,-606.0,0.00027296,2]
[354966731,1740849046509,-1064.53,0.00027296,2]
[354966732,1740849046520,-500.0,0.00027296,2]
[354966734,1740849046530,-500.0,0.00027296,2]
[354966736,1740849046539,-559.48,0.00027296,2]
[354966738,1740849046549,-2683.1,0.00027296,2]
[354966740,1740849046559,-500.0,0.00027296,2]
[354966742,1740849046569,-500.0,0.00027296,2]
[354966744,1740849046580,-500.0,0.00027296,2]
[354966747,1740849046590,-953.74,0.00027296,2]
[354966750,1740849046602,-816.24,0.00027296,2]
[354966753,1740849046613,-500.0,0.00027296,2]
[354966756,1740849046623,-500.0,0.00027296,2]
[354966759,1740849046633,-853.55,0.00027296,2]
[354966762,1740849046642,-1466.06,0.00027296,2]
[354966765,1740849046652,-778.11,0.00027296,2]
[354966768,1740849046662,-500.0,0.00027296,2]
[354966771,1740849046673,-1847.59,0.00027296,2]
[354966774,1740849046682,-500.0,0.00027296,2]
[354966777,1740849046692,-5490.16,0.00027296,2]
[354966780,1740849046702,-500.0,0.00027296,2]
[354966784,1740849046713,-500.0,0.00027296,2]
[354966787,1740849046723,-3000.0,0.00027297,2]
[354966790,1740849046733,-3390.56,0.00027386,3]
[354966793,1740849046743,-1695.28,0.00027386,3]
[354966797,1740849046752,-847.64,0.00027386,3]
[354966800,1740849046762,-423.82,0.00027386,3]
[354966803,1740849046772,-1029.59,0.00027395,2]
[354966806,1740849046782,-500.0,0.00027396,2]
[354966809,1740849046791,-504.15923433,0.00027396,2]
[354966812,1740849046802,-500.0,0.00027396,2]
[354966815,1740849046812,-500.0,0.00027396,2]
[354966818,1740849046822,-500.0,0.00027396,2]
[354966821,1740849046832,-500.0,0.00027396,2]
[354966824,1740849046842,-500.0,0.00027396,2]
[354966827,1740849046852,-500.0,0.00027396,2]
[354966830,1740849046862,-500.0,0.00027396,2]
[354966833,1740849046871,-1089.13,0.00027396,2]
[354966836,1740849046881,-1089.13,0.00027396,2]
[354966839,1740849046891,-1089.13,0.00027396,2]
[354966842,1740849046901,-1089.13,0.00027396,2]
[354966846,1740849046912,-1089.13,0.00027396,2]
[354966850,1740849046923,-1089.13,0.00027396,2]
[354966853,1740849046933,-1089.13,0.00027396,2]
[354966856,1740849046942,-1089.13,0.00027396,2]
[354966859,1740849046952,-1089.13,0.00027396,2]
[354966861,1740849046961,-500.0,0.00027396,2]
[354966864,1740849046971,-1087.15,0.00027396,2]
[354966867,1740849046981,-500.0,0.00027396,2]
[354966869,1740849046992,-500.0,0.00027396,2]
[354966872,1740849047002,-500.0,0.00027396,2]
[354966875,1740849047012,-500.0,0.00027396,2]
[354966878,1740849047022,-500.0,0.00027396,2]
[354966880,1740849047032,-650.99,0.00027396,2]
[354966883,1740849047045,-500.0,0.00027396,2]
[354966887,1740849047055,-500.0,0.00027396,2]
[354966889,1740849047065,-500.0,0.00027396,2]
[354966892,1740849047075,-500.0,0.00027396,2]
[354966895,1740849047085,-571.33,0.00027396,2]
[354966897,1740849047096,-563.95,0.00027396,2]
[354966900,1740849047107,-500.0,0.00027396,2]
[354966903,1740849047120,-500.0,0.00027396,2]
[354966906,1740849047130,-851.64,0.00027396,2]
[354966909,1740849047140,-500.0,0.00027396,2]
[354966912,1740849047150,-845.48,0.00027396,2]
[354966914,1740849047160,-500.0,0.00027396,2]
[354966918,1740849047170,-574.61,0.00027396,2]
[354966921,1740849047180,-500.0,0.00027396,2]
[354966924,1740849047191,-500.0,0.00027396,2]
[354966927,1740849047201,-500.0,0.00027396,2]
[354966930,1740849047211,-500.0,0.00027396,2]
[354966932,1740849047220,-500.0,0.00027396,2]
[354966935,1740849047230,-1693.34,0.00027396,2]
[354966938,1740849047240,-500.0,0.00027396,2]
[354966941,1740849047250,-500.0,0.00027396,2]
[354966944,1740849047260,-1788.29,0.00027396,2]
[354966946,1740849047270,-500.0,0.00027396,2]
[354966949,1740849047280,-887.67,0.00027396,2]
[354966952,1740849047290,-500.0,0.00027396,2]
[354966955,1740849047300,-500.0,0.00027396,2]
[354966958,1740849047310,-500.0,0.00027396,2]
[354966961,1740849047320,-500.0,0.00027396,2]
[354966964,1740849047331,-500.0,0.00027396,2]
[354966967,1740849047341,-546.04443159,0.00027396,2]
[354966970,1740849047352,-500.0,0.00027396,2]
[354966973,1740849047362,-2176.97,0.00027396,2]
[354966976,1740849047374,-780.7,0.00027396,2]
[354966979,1740849047384,-500.0,0.00027396,2]
[354966981,1740849047395,-500.0,0.00027396,2]
[354966985,1740849047406,-500.0,0.00027396,2]
[354966988,1740849047416,-500.0,0.00027396,2]
[354966990,1740849047427,-1202.51,0.00027396,2]
[354966993,1740849047437,-500.0,0.00027396,2]
[354966995,1740849047447,-584.51,0.00027396,2]
[354966998,1740849047458,-500.0,0.00027396,2]
[354967001,1740849047468,-500.0,0.00027396,2]
[354967003,1740849047479,-500.0,0.00027396,2]
[354967006,1740849047490,-689.6,0.00027396,2]
[354967010,1740849047499,-500.0,0.00027396,2]
[354967013,1740849047510,-736.89,0.00027396,2]
[354967016,1740849047520,-500.0,0.00027396,2]
[354967018,1740849047530,-500.0,0.00027396,2]
[354967021,1740849047540,-500.0,0.00027396,2]
[354967024,1740849047549,-500.0,0.00027396,2]
[354967026,1740849047558,-500.0,0.00027396,2]
[354967029,1740849047568,-1311.99,0.00027396,2]
[354967031,1740849047578,-500.0,0.00027396,2]
[354967033,1740849047588,-891.18,0.00027396,2]
[354967035,1740849047597,-500.0,0.00027396,2]
[354967037,1740849047607,-646.85,0.00027396,2]
[354967039,1740849047617,-1341.14,0.00027396,2]
[354967044,1740849047641,-1201.42,0.00027396,2]
[354967047,1740849047653,-500.0,0.00027396,2]
[354967050,1740849047664,-1709.5,0.00027396,2]
[354967054,1740849047674,-500.0,0.00027396,2]
[354967057,1740849047686,-1261.45,0.00027396,2]
[354967060,1740849047696,-500.0,0.00027396,2]
[354967063,1740849047706,-508.05,0.00027396,2]
[354967066,1740849047716,-634.4,0.00027396,2]
[354967069,1740849047727,-500.0,0.00027396,2]
[354967071,1740849047737,-500.0,0.00027396,2]
[354967074,1740849047747,-500.0,0.00027396,2]
[354967077,1740849047757,-780.96,0.00027396,2]
[354967079,1740849047768,-500.0,0.00027396,2]
[354967081,1740849047779,-500.0,0.00027396,2]
[354967083,1740849047789,-541.51,0.00027396,2]
[354967085,1740849047799,-500.0,0.00027396,2]
[354967087,1740849047809,-1944.19,0.00027396,2]
[354967089,1740849047819,-500.0,0.00027396,2]
[354967119,1740849048008,-700.47,0.00027396,2]
[354967122,1740849048019,-500.0,0.00027396,2]
[354967124,1740849048030,-500.0,0.00027396,2]
[354967128,1740849048046,-1403.45,0.00027396,2]
[354967131,1740849048056,-500.0,0.00027396,2]
[354967133,1740849048066,-785.18,0.00027396,2]
[354967135,1740849048077,-1385.65,0.00027396,2]
[354967137,1740849048087,-500.0,0.00027396,2]
[354967139,1740849048098,-606.92,0.00027396,2]
[354967141,1740849048108,-3653.9,0.00027396,2]
[354967143,1740849048121,-1204.33,0.00027396,2]
[354967145,1740849048133,-500.0,0.00027396,2]
[354967147,1740849048143,-510.78311647,0.00027396,2]
[354967149,1740849048153,-500.0,0.00027396,2]
[354967151,1740849048163,-640.32252769,0.00027396,2]
[354967153,1740849048174,-2060.02,0.00027396,2]
[354967155,1740849048185,-500.0,0.00027396,2]
[354967157,1740849048203,-1023.91,0.00027396,2]
[354967159,1740849048215,-602.9,0.00027396,2]
[354967162,1740849048227,-1659.53,0.00027396,2]
[354967164,1740849048238,-500.0,0.00027396,2]
[354967166,1740849048250,-900.14,0.00027396,2]
[354967168,1740849048261,-1333.85,0.00027396,2]
[354967170,1740849048271,-1223.36,0.00027396,2]
[354967172,1740849048282,-515.19,0.00027396,2]
[354967174,1740849048293,-573.3,0.00027396,2]
[354967176,1740849048305,-613.79,0.00027396,2]
[354967178,1740849048315,-599.19,0.00027396,2]
[354967180,1740849048326,-1324.47,0.00027396,2]
[354967182,1740849048336,-533.78,0.00027396,2]
[354967184,1740849048346,-500.0,0.00027396,2]
[354967186,1740849048357,-556.87,0.00027396,2]
[354967188,1740849048367,-607.58,0.00027396,2]
[354967190,1740849048378,-748.72,0.00027396,2]
[354967192,1740849048394,-500.0,0.00027396,2]
[354967194,1740849048404,-500.0,0.00027396,2]
[354967196,1740849048415,-510.95,0.00027396,2]
[354967198,1740849048433,-16180.88,0.00027396,2]
[354967201,1740849048445,-500.0,0.00027396,2]
[354967202,1740849048456,-1183.61,0.00027396,2]
[354967205,1740849048467,-668.56,0.00027396,2]
[354967207,1740849048478,-644.97,0.00027396,2]
[354967208,1740849048490,-571.58,0.00027396,2]
[354967210,1740849048500,-2071.49,0.00027396,2]
[354967213,1740849048512,-500.0,0.00027396,2]
[354967215,1740849048523,-500.0,0.00027396,2]
[354967217,1740849048533,-10314.96,0.00027396,2]
[354967219,1740849048544,-1255.35,0.00027396,2]
[354967221,1740849048554,-8632.57,0.00027396,2]
[354967223,1740849048565,-500.0,0.00027396,2]
[354967225,1740849048576,-1645.29,0.00027396,2]
[354967227,1740849048586,-500.0,0.00027396,2]
[354967229,1740849048597,-2794.19,0.00027396,2]
[354967231,1740849048609,-500.0,0.00027396,2]
[354967233,1740849048619,-500.0,0.00027396,2]
[354967235,1740849048630,-5314.26,0.00027396,2]
[354967237,1740849048640,-1568.66,0.00027396,2]
[354967239,1740849048652,-728.66,0.00027396,2]
[354967241,1740849048662,-500.0,0.00027396,2]
[354967243,1740849048673,-2947.17,0.00027396,2]
[354967245,1740849048683,-656.35,0.00027396,2]
[354967247,1740849048693,-1162.96,0.00027396,2]
[354967249,1740849048703,-500.0,0.00027396,2]
[354967251,1740849048714,-500.0,0.00027396,2]
[354967253,1740849048725,-2207.59,0.00027396,2]
[354967254,1740849048735,-500.0,0.00027396,2]
[354967255,1740849048746,-1202.98,0.00027396,5]
[354967256,1740849048756,-500.0,0.00027396,2]
[354967258,1740849048767,-500.0,0.00027396,2]
[354967260,1740849048777,-500.0,0.00027396,2]
[354967262,1740849048787,-1625.84,0.00027396,2]
[354967264,1740849048797,-1709.01,0.00027396,2]
[354967266,1740849048808,-618.84,0.00027396,2]
[354967268,1740849048818,-897.29,0.00027396,2]
[354967270,1740849048828,-500.0,0.00027396,2]
[354967272,1740849048838,-500.0,0.00027396,2]
[354967274,1740849048848,-3492.93,0.00027396,2]
[354967276,1740849048858,-1087.13,0.00027396,2]
[354967278,1740849048869,-500.0,0.00027396,2]
[354967280,1740849048878,-8399.4,0.00027396,2]
[354967282,1740849048888,-6411.82,0.00027396,2]
[354967284,1740849048898,-500.0,0.00027396,2]
[354967286,1740849048908,-500.0,0.00027396,2]
[354967288,1740849048918,-893.25,0.00027396,2]
[354967290,1740849048928,-974.04,0.00027396,2]
[354967292,1740849048938,-500.0,0.00027396,2]
[354967294,1740849048948,-500.0,0.00027396,2]
[354967296,1740849048958,-11449.42,0.00027396,2]
[354967298,1740849048967,-500.0,0.00027396,2]
[354967300,1740849048978,-500.0,0.00027396,2]
[354967302,1740849048988,-507.31396703,0.00027396,2]
[354967304,1740849048998,-858.33,0.00027396,2]
[354967306,1740849049008,-1280.32,0.00027396,2]
[354967308,1740849049018,-1269.05,0.00027396,2]
[354967310,1740849049028,-525.19719281,0.00027396,2]
[354967312,1740849049041,-500.0,0.00027396,2]
[354967314,1740849049051,-500.0,0.00027396,2]
[354967316,1740849049063,-500.0,0.00027396,2]
[354967318,1740849049076,-3805.73,0.00027396,2]
[354967320,1740849049087,-500.0,0.00027396,2]
[354967322,1740849049098,-617.32,0.00027396,2]
[354967324,1740849049109,-3072.75,0.00027396,2]
[354967326,1740849049120,-509.6681462,0.00027396,2]
[354967329,1740849049131,-500.0,0.00027396,2]
[354967331,1740849049141,-500.0,0.00027396,2]
[354967333,1740849049152,-500.0,0.00027396,2]
[354967335,1740849049164,-500.0,0.00027396,2]
[354967337,1740849049175,-877.31,0.00027396,2]
[354967339,1740849049185,-1180.36,0.00027396,2]
[354967341,1740849049196,-675.51,0.00027396,2]
[354967343,1740849049206,-500.0,0.00027396,2]
[354967345,1740849049220,-500.0,0.00027397,2]
[354967347,1740849049232,-151.0,0.000274,13]
[354967349,1740849049242,-161129.82485313,0.0002747,11]
[354967351,1740849049253,-116006.49932877,0.0002747,11]
[354967353,1740849049265,-500.0,0.0002747,2]
[354967355,1740849049275,-500.0,0.0002747,2]
[354967357,1740849049286,-1866.14,0.0002747,2]
[354967360,1740849049299,-10698.68,0.0002747,2]
[354967362,1740849049309,-182357.48,0.0002747,2]
[354967364,1740849049319,-2357.62,0.0002747,2]
[354967366,1740849049329,-3696.6,0.0002747,2]
[354967368,1740849049339,-1580.18,0.0002747,2]
[354967370,1740849049349,-2208.56,0.0002747,2]
[354967372,1740849049360,-4760.68,0.0002747,2]
[354967374,1740849049370,-500.0,0.0002747,2]
[354967376,1740849049380,-1082.14,0.0002747,2]
[354967378,1740849049390,-724.73,0.0002747,2]
[354967380,1740849049400,-500.0,0.0002747,2]
[354967382,1740849049410,-1513.95,0.0002747,2]
[354967384,1740849049420,-200.981,0.00027472,2]
[354967386,1740849049430,-3118.15,0.00027488,2]
[354967388,1740849049440,-2018.36,0.00027488,2]
[354967390,1740849049451,-2112.74,0.00027488,2]
[354967392,1740849049461,-1471.82,0.00027488,2]
[354967394,1740849049470,-1836.94,0.00027488,2]
[354967396,1740849049480,-300.03030946,0.00027488,2]
[354967398,1740849049490,-538.9,0.00027488,2]
[354967400,1740849049501,-500.0,0.00027488,2]
[354967402,1740849049512,-1462.88,0.00027488,2]
[354967404,1740849049522,-1474.32,0.00027488,2]
[354967408,1740849049544,-2259.21,0.00027488,2]
[354967410,1740849049555,-1991.42,0.00027488,2]
[354967412,1740849049565,-6248.57,0.00027488,2]
[354967414,1740849049575,-151.0,0.000275,11]
[354967416,1740849049585,-500.0,0.0002757,2]
[354967418,1740849049595,-500.0,0.0002757,2]
[354967420,1740849049605,-500.0,0.0002757,2]
[354967422,1740849049615,-500.0,0.0002757,2]
[354967424,1740849049625,-192.21601703,0.0002757,2]
[354967426,1740849049634,-500.0,0.0002757,2]
[354967428,1740849049645,-500.0,0.0002757,2]
[354967430,1740849049654,-744.01,0.0002757,2]
[354967432,1740849049664,-500.0,0.0002757,2]
[354967434,1740849049675,-500.0,0.0002757,2]
[354967436,1740849049684,-508.73510152,0.0002757,2]
[354967438,1740849049694,-500.0,0.0002757,2]
[354967440,1740849049703,-901.99,0.0002757,2]
[354967442,1740849049713,-497.16,0.0002757,2]
[354967444,1740849049723,-873.54,0.0002757,2]
[354967446,1740849049732,-500.0,0.0002757,2]
[354967447,1740849049741,-1270.04,0.0002757,2]
[354967448,1740849049750,-505.7901758,0.0002757,2]
[354967449,1740849049760,-500.0,0.0002757,2]
[354967451,1740849049769,-614.75925659,0.0002757,2]
[354967453,1740849049778,-500.0,0.0002757,2]
[354967455,1740849049788,-500.0,0.0002757,2]
[354967456,1740849049797,-500.0,0.0002757,2]
[354967458,1740849049807,-500.0,0.0002757,2]
[354967461,1740849049817,-500.0,0.0002757,2]
[354967463,1740849049826,-365.24870982,0.0002757,2]
[354967465,1740849049836,-500.0,0.0002757,2]
[354967467,1740849049846,-500.0,0.0002757,2]
[354967469,1740849049855,-844.57,0.0002757,2]
[354967471,1740849049865,-1562.65,0.0002757,2]
[354967473,1740849049875,-515.14,0.0002757,2]
[354967475,1740849049885,-500.0,0.0002757,2]
[354967476,1740849049894,-500.0,0.0002757,2]
[354967479,1740849049909,-500.0,0.0002757,2]
[354967481,1740849049919,-500.0,0.0002757,2]
[354967483,1740849049928,-500.0,0.0002757,2]
[354967485,1740849049937,-1510.88,0.0002757,2]
[354967487,1740849049947,-1259.03,0.0002757,2]
[354967489,1740849049956,-500.0,0.0002757,2]
[354967491,1740849049965,-617.9,0.0002757,2]
[354967493,1740849049974,-505.55,0.0002757,2]
[354967495,1740849049984,-500.0,0.0002757,2]
[354967497,1740849049994,-1153.47,0.0002757,2]
[354967499,1740849050004,-562.61,0.0002757,2]
[354967501,1740849050014,-524.5237942,0.0002757,2]
[354967503,1740849050024,-521.65,0.0002757,2]
[354967505,1740849050036,-500.0,0.0002757,2]
[354967507,1740849050049,-511.37662572,0.0002757,2]
[354967509,1740849050060,-500.0,0.0002757,2]
[354967511,1740849050070,-500.0,0.0002757,2]
[354967513,1740849050082,-500.0,0.0002757,2]
[354967514,1740849050091,-500.0,0.0002757,2]
[354967515,1740849050101,-500.0,0.0002757,2]
[354967516,1740849050112,-500.0,0.0002757,2]
[354967517,1740849050122,-500.0,0.0002757,2]
[354967518,1740849050132,-418.54033608,0.0002757,2]
[354967519,1740849050141,-500.0,0.0002757,2]
[354967520,1740849050151,-658.24,0.0002757,2]
[354967521,1740849050161,-1216.88,0.0002757,2]
[354967522,1740849050171,-825.9,0.0002757,2]
[354967523,1740849050181,-500.0,0.0002757,2]
[354967524,1740849050191,-500.0,0.0002757,2]
[354967525,1740849050201,-1018.14,0.0002757,2]
[354967526,1740849050211,-500.0,0.0002757,2]
[354967527,1740849050221,-500.0,0.0002757,2]
[354967528,1740849050230,-500.0,0.0002757,2]
[354967529,1740849050240,-746.69,0.0002757,2]
[354967530,1740849050250,-500.0,0.0002757,2]
[354967531,1740849050260,-500.0,0.0002757,2]
[354967532,1740849050270,-500.0,0.0002757,2]
[354967533,1740849050282,-500.0,0.0002757,2]
[354967534,1740849050297,-580.21,0.0002757,2]
[354967535,1740849050312,-500.0,0.0002757,2]
[354967536,1740849050322,-500.0,0.0002757,2]
[354967537,1740849050332,-500.0,0.0002757,2]
[354967538,1740849050341,-500.0,0.0002757,2]
[354967539,1740849050351,-578.04,0.0002757,2]
[354967540,1740849050361,-500.0,0.0002757,2]
[354967541,1740849050371,-444.09264967,0.0002757,2]
[354967542,1740849050381,-500.0,0.0002757,2]
[354967543,1740849050391,-1253.1,0.0002757,2]
[354967544,1740849050400,-416.72762937,0.0002757,2]
[354967545,1740849050410,-551.13,0.0002757,2]
[354967546,1740849050421,-500.0,0.0002757,2]
[354967547,1740849050431,-924.66,0.0002757,2]
[354967548,1740849050441,-1012.73,0.0002757,2]
[354967549,1740849050451,-945.06,0.0002757,2]
[354967550,1740849050461,-500.0,0.0002757,2]
[354967551,1740849050470,-500.0,0.0002757,2]
[354967552,1740849050480,-500.0,0.0002757,2]
[354967553,1740849050490,-500.0,0.0002757,2]
[354967554,1740849050500,-500.0,0.0002757,2]
[354967555,1740849050510,-500.0,0.0002757,2]
[354967556,1740849050520,-681.91,0.0002757,2]
[354967557,1740849050532,-500.0,0.0002757,2]
[354967558,1740849050544,-500.0,0.0002757,2]
[354967559,1740849050555,-500.0,0.0002757,2]
[354967560,1740849050566,-500.0,0.0002757,2]
[354967561,1740849050578,-647.65,0.0002757,2]
[354967562,1740849050588,-515.16,0.0002757,2]
[354967563,1740849050599,-500.0,0.0002757,2]
[354967564,1740849050610,-500.0,0.0002757,2]
[354967565,1740849050621,-500.0,0.0002757,2]
[354967566,1740849050632,-500.0,0.0002757,2]
[354967567,1740849050643,-500.0,0.0002757,2]
[354967568,1740849050654,-500.0,0.0002757,2]
[354967569,1740849050665,-556.78,0.0002757,2]
[354967570,1740849050675,-500.0,0.0002757,2]
[354967571,1740849050686,-500.0,0.0002757,2]
[354967572,1740849050696,-500.0,0.0002757,2]
[354967573,1740849050707,-1022.49,0.0002757,2]
[354967574,1740849050719,-500.0,0.0002757,2]
[354967575,1740849050729,-500.0,0.0002757,2]
[354967576,1740849050740,-500.0,0.0002757,2]
[354967577,1740849050750,-500.0,0.0002757,2]
[354967578,1740849050761,-1672.43,0.0002757,2]
[354967579,1740849050770,-1502.99,0.0002757,2]
[354967580,1740849050781,-956.08,0.0002757,2]
[354967581,1740849050792,-500.0,0.0002757,2]
[354967582,1740849050802,-701.13,0.0002757,2]
[354967583,1740849050813,-500.0,0.0002757,2]
[354967584,1740849050823,-500.0,0.0002757,2]
[354967585,1740849050834,-576.37,0.0002757,2]
[354967586,1740849050845,-500.0,0.0002757,2]
[354967587,1740849050855,-500.0,0.0002757,2]
[354967588,1740849050865,-1095.95,0.0002757,2]
[354967589,1740849050876,-586.4,0.0002757,2]
[354967590,1740849050886,-500.0,0.0002757,2]
[354967591,1740849050897,-3059.32,0.0002757,2]
[354967592,1740849050907,-530.03,0.0002757,2]
[354967593,1740849050918,-500.0,0.0002757,2]
[354967594,1740849050928,-500.0,0.0002757,2]
[354967595,1740849050939,-771.7,0.0002757,2]
[354967596,1740849050949,-1204.65,0.0002757,2]
[354967597,1740849050960,-500.0,0.0002757,2]
[354967598,1740849050970,-513.36,0.0002757,2]
[354967599,1740849050980,-500.0,0.0002757,2]
[354967600,1740849050991,-500.0,0.0002757,2]
[354967601,1740849051001,-510.68,0.0002757,2]
[354967602,1740849051012,-606.0,0.0002757,2]
[354967603,1740849051022,-1064.53,0.0002757,2]
[354967604,1740849051033,-500.0,0.0002757,2]
[354967605,1740849051048,-559.48,0.0002757,2]
[354967606,1740849051059,-2683.1,0.0002757,2]
[354967607,1740849051070,-500.0,0.0002757,2]
[354967608,1740849051081,-500.0,0.0002757,2]
[354967609,1740849051092,-500.0,0.0002757,2]
[354967610,1740849051102,-953.74,0.0002757,2]
[354967611,1740849051113,-816.24,0.0002757,2]
[354967612,1740849051123,-500.0,0.0002757,2]
[354967613,1740849051133,-500.0,0.0002757,2]
[354967614,1740849051143,-853.55,0.0002757,2]
[354967615,1740849051154,-1466.06,0.0002757,2]
[354967616,1740849051164,-778.11,0.0002757,2]
[354967617,1740849051175,-500.0,0.0002757,2]
[354967618,1740849051185,-1847.59,0.0002757,2]